[Event "Panevezys ELITE Open 2021"]
[Site "Panevezys, Lithuania"]
[Date "2021.08.02"]
[Round "5.1"]
[White "Kazakouski, Valery"]
[Black "Brazdzionis, Andrius"]
[Result "1/2-1/2"]
[WhiteElo "2499"]
[BlackElo "2321"]
[PlyCount "116"]
[EventDate "2021.??.??"]
[TimeControl "90/40+30:0"]
[WhiteClock "0:12:12"]
[BlackClock "0:52:34"]

1. Nf3 {[%emt 0:00:03]} c5 {[%emt 0:00:33]} 2. c4 {[%emt 0:00:07]} Nf6 {[%emt
0:00:08]} 3. b3 {[%emt 0:00:25]} g6 {[%emt 0:00:52]} 4. Bb2 {[%emt 0:00:37]}
Bg7 {[%emt 0:00:18]} 5. g3 {[%emt 0:00:08]} d6 {[%emt 0:00:24]} 6. Bg2 {[%emt
0:00:31]} e5 {[%emt 0:00:24]} 7. O-O {[%emt 0:00:34]} O-O {[%emt 0:02:06]} 8.
d3 {[%emt 0:00:08]} Nc6 {[%emt 0:00:12]} 9. Nc3 {[%emt 0:00:16]} Ne8 {[%emt 0:
00:42]} 10. a3 {[%emt 0:07:12]} a5 {[%emt 0:02:22]} 11. Nd2 {[%emt 0:02:26]}
Nc7 {[%emt 0:00:51]} 12. e3 {[%emt 0:02:30]} Be6 {[%emt 0:02:12]} 13. Nd5 {
[%emt 0:03:10]} Rb8 {[%emt 0:00:57]} 14. Nxc7 {[%emt 0:04:41]} Qxc7 {[%emt 0:
00:14]} 15. Ne4 {[%emt 0:01:07]} b5 {[%emt 0:01:43]} 16. Nc3 {[%emt 0:07:40]}
Na7 {[%emt 0:14:09]} 17. Rb1 {[%emt 0:04:20]} a4 {[%emt 0:04:18]} 18. Nd5 {
[%emt 0:04:55]} Bxd5 {[%emt 0:03:08]} 19. Bxd5 {[%emt 0:00:53]} axb3 {[%emt 0:
00:40]} 20. Qxb3 {[%emt 0:01:24]} bxc4 {[%emt 0:00:19]} 21. Qxc4 {[%emt 0:00:
41]} Nc8 {[%emt 0:00:44]} 22. Bc3 {[%emt 0:04:51]} Ne7 {[%emt 0:07:06]} 23.
Rxb8 {[%emt 0:03:19]} Qxb8 {[%emt 0:00:15]} 24. Bg2 {[%emt 0:02:09]} Qa7 {
[%emt 0:01:50]} 25. a4 {[%emt 0:03:54]} d5 {[%emt 0:01:02]} 26. Bxd5 {[%emt 0:
07:10]} Nxd5 {[%emt 0:00:10]} 27. Qxd5 {[%emt 0:00:06]} Qxa4 {[%emt 0:00:10]}
28. Bxe5 {[%emt 0:00:44]} Bxe5 {[%emt 0:00:39]} 29. Qxe5 {[%emt 0:00:09]} Qb3 {
[%emt 0:00:13]} 30. Qd6 {[%emt 0:09:29]} c4 {[%emt 0:01:04]} 31. dxc4 {[%emt 0:
02:35]} Qxc4 {[%emt 0:00:05]} 32. Rd1 {[%emt 0:00:37]} Qe2 {[%emt 0:03:50]} 33.
Kg2 {[%emt 0:03:07]} Re8 {[%emt 0:03:21]} 34. Rd2 {[%emt 0:01:43]} Qg4 {[%emt
0:01:23]} 35. Rd4 {[%emt 0:02:10]} Qe6 {[%emt 0:01:06]} 36. Qxe6 {[%emt 0:02:
53]} Rxe6 {[%emt 0:00:05]} 37. g4 {[%emt 0:00:51]} Re5 {[%emt 0:01:36]} 38. e4
{[%emt 0:10:01]} h5 {[%emt 0:02:23]} 39. f4 {[%emt 0:00:47]} Ra5 {[%emt 0:00:
29]} 40. gxh5 {[%emt 0:00:29]} Rxh5 {[%emt 0:00:06]} 41. Rd5 {[%emt 0:00:43]}
Rh6 {[%emt 0:07:28]} 42. e5 {[%emt 0:06:13]} Rh5 {[%emt 0:02:26]} 43. Kg3 {
[%emt 0:03:41]} Kg7 {[%emt 0:04:36]} 44. Rd7 {[%emt 0:03:31]} Kf8 {[%emt 0:01:
21]} 45. h4 {[%emt 0:02:27]} Kg8 {[%emt 0:03:04]} 46. Rd8+ {[%emt 0:05:25]} Kg7
{[%emt 0:00:37]} 47. Kg4 {[%emt 0:00:09]} Kh7 {[%emt 0:01:34]} 48. Rd5 {[%emt
0:03:20]} Kg7 {[%emt 0:01:50]} 49. Rd7 {[%emt 0:00:08]} Kf8 {[%emt 0:00:56]}
50. Rd8+ {[%emt 0:01:13]} Kg7 {[%emt 0:00:20]} 51. Ra8 {[%emt 0:00:38]} Kh7 {
[%emt 0:00:44]} 52. Ra6 {[%emt 0:04:51]} Kg7 {[%emt 0:02:16]} 53. Rb6 {[%emt 0:
00:22]} Rf5 {[%emt 0:01:05]} 54. Rc6 {[%emt 0:01:28]} Rh5 {[%emt 0:00:14]} 55.
Rf6 {[%emt 0:00:06]} Rh8 {[%emt 0:01:36]} 56. f5 {[%emt 0:02:14]} Rh5 {[%emt 0:
00:00]} 57. Kh3 {[%emt 0:01:43]} gxf5 {[%emt 0:00:27]} 58. Kg3 {[%emt 0:00:08]}
f4+ {[%emt 0:00:12]} 1/2-1/2

[Event "Panevezys ELITE Open 2021"]
[Site "Panevezys, Lithuania"]
[Date "2021.08.02"]
[Round "5.2"]
[White "Steponavicius, Stasys"]
[Black "Meshkovs, Nikita"]
[Result "0-1"]
[WhiteElo "2209"]
[BlackElo "2568"]
[PlyCount "68"]
[EventDate "2021.??.??"]
[TimeControl "90/40+30:0"]
[WhiteClock "0:09:23"]
[BlackClock "1:00:28"]

1. d4 {[%emt 0:00:04]} d5 {[%emt 0:01:50]} 2. c4 {[%emt 0:00:09]} e6 {[%emt 0:
00:07]} 3. Nc3 {[%emt 0:00:09]} Nf6 {[%emt 0:00:10]} 4. cxd5 {[%emt 0:00:13]}
exd5 {[%emt 0:00:06]} 5. Bg5 {[%emt 0:00:09]} Be7 {[%emt 0:00:08]} 6. e3 {
[%emt 0:00:24]} c6 {[%emt 0:00:08]} 7. Bd3 {[%emt 0:00:09]} Nbd7 {[%emt 0:00:
08]} 8. Qc2 {[%emt 0:00:30]} Nh5 {[%emt 0:00:35]} 9. Bxe7 {[%emt 0:00:34]} Qxe7
{[%emt 0:00:02]} 10. Nge2 {[%emt 0:00:14]} Nb6 {[%emt 0:00:38]} 11. O-O {[%emt
0:03:47]} g6 {[%emt 0:02:04]} 12. Na4 {[%emt 0:02:30]} Nxa4 {[%emt 0:02:10]}
13. Qxa4 {[%emt 0:00:08]} O-O {[%emt 0:00:04]} 14. b4 {[%emt 0:04:32]} a6 {
[%emt 0:00:06]} 15. Qb3 {[%emt 0:00:14]} f5 {[%emt 0:00:49]} 16. a4 {[%emt 0:
03:37]} f4 {[%emt 0:01:44]} 17. exf4 {[%emt 0:10:39]} Nxf4 {[%emt 0:00:18]} 18.
Nxf4 {[%emt 0:01:16]} Rxf4 {[%emt 0:00:02]} 19. Rae1 {[%emt 0:01:59]} Qf8 {
[%emt 0:06:28]} 20. Re4 {[%emt 0:09:27]} Rxe4 {[%emt 0:06:57]} 21. Bxe4 {[%emt
0:00:10]} Qf4 {[%emt 0:05:23]} 22. Re1 {[%emt 0:05:04]} Bg4 {[%emt 0:01:18]}
23. h3 {[%emt 0:07:11]} Bd7 {[%emt 0:01:34]} 24. Bc2 {[%emt 0:15:23]} Qxd4 {
[%emt 0:07:56]} 25. Re7 {[%emt 0:01:46]} Re8 {[%emt 0:02:23]} 26. Rxd7 {[%emt
0:10:15]} Re1+ {[%emt 0:00:16]} 27. Kh2 {[%emt 0:00:08]} Qxf2 {[%emt 0:00:19]}
28. Rd8+ {[%emt 0:01:44]} Kg7 {[%emt 0:01:28]} 29. Qc3+ {[%emt 0:11:08]} Kh6 {
[%emt 0:00:39]} 30. Qf3 {[%emt 0:03:16]} Qg1+ {[%emt 0:00:16]} 31. Kg3 {[%emt
0:00:06]} Re3 {[%emt 0:00:07]} 32. Bd1 {[%emt 0:00:55]} Rxf3+ {[%emt 0:00:32]}
33. Bxf3 {[%emt 0:00:06]} Qe1+ {[%emt 0:00:04]} 34. Kh2 {[%emt 0:00:17]} Qe7 {
[%emt 0:00:08]} 0-1

[Event "Panevezys ELITE Open 2021"]
[Site "Panevezys, Lithuania"]
[Date "2021.08.02"]
[Round "5.3"]
[White "Kalvaitis, Sigitas"]
[Black "Sulskis, Sarunas"]
[Result "1/2-1/2"]
[WhiteElo "2164"]
[BlackElo "2523"]
[PlyCount "84"]
[EventDate "2021.??.??"]
[TimeControl "90/40+30:0"]
[WhiteClock "0:01:25"]
[BlackClock "0:05:01"]

1. e4 {[%emt 0:00:03]} e5 {[%emt 0:00:13]} 2. Nf3 {[%emt 0:00:56]} Nc6 {[%emt
0:00:26]} 3. Bc4 {[%emt 0:00:53]} Nf6 {[%emt 0:00:17]} 4. d3 {[%emt 0:00:31]}
h6 {[%emt 0:03:27]} 5. Nc3 {[%emt 0:06:10]} Bb4 {[%emt 0:10:25]} 6. O-O {[%emt
0:06:25]} Bxc3 {[%emt 0:00:58]} 7. bxc3 {[%emt 0:00:04]} O-O {[%emt 0:00:07]}
8. h3 {[%emt 0:09:08]} Na5 {[%emt 0:07:33]} 9. Nxe5 {[%emt 0:05:55]} Nxc4 {
[%emt 0:05:55]} 10. Nxc4 {[%emt 0:00:35]} d5 {[%emt 0:00:07]} 11. exd5 {[%emt
0:01:45]} Nxd5 {[%emt 0:00:40]} 12. Bd2 {[%emt 0:11:24]} Qf6 {[%emt 0:03:45]}
13. d4 {[%emt 0:03:00]} b6 {[%emt 0:10:57]} 14. Ne5 {[%emt 0:05:53]} Bb7 {
[%emt 0:03:02]} 15. Nd7 {[%emt 0:10:10]} Qc6 {[%emt 0:01:53]} 16. Ne5 {[%emt 0:
00:36]} Qa4 {[%emt 0:03:34]} 17. c4 {[%emt 0:03:40]} Nf6 {[%emt 0:02:09]} 18.
c3 {[%emt 0:01:50]} Qxd1 {[%emt 0:02:01]} 19. Rfxd1 {[%emt 0:06:13]} Rfe8 {
[%emt 0:04:59]} 20. f3 {[%emt 0:02:11]} a5 {[%emt 0:05:12]} 21. Kf2 {[%emt 0:
01:41]} Nh7 {[%emt 0:03:03]} 22. Bf4 {[%emt 0:02:21]} Nf8 {[%emt 0:04:38]} 23.
Nd3 {[%emt 0:02:14]} Rac8 {[%emt 0:01:48]} 24. Re1 {[%emt 0:04:00]} Ne6 {[%emt
0:04:31]} 25. Bg3 {[%emt 0:00:37]} Ba6 {[%emt 0:01:33]} 26. Nb2 {[%emt 0:00:40]
} Red8 {[%emt 0:03:43]} 27. d5 {[%emt 0:02:02]} Nc5 {[%emt 0:00:59]} 28. Re7 {
[%emt 0:00:41]} Rd7 {[%emt 0:02:30]} 29. Rae1 {[%emt 0:02:25]} Kf8 {[%emt 0:00:
47]} 30. Rxd7 {[%emt 0:01:09]} Nxd7 {[%emt 0:00:06]} 31. Ke3 {[%emt 0:00:28]}
Nc5 {[%emt 0:07:18]} 32. Kd4 {[%emt 0:01:19]} a4 {[%emt 0:01:33]} 33. Nd3 {
[%emt 0:00:46]} Nxd3 {[%emt 0:00:38]} 34. Kxd3 {[%emt 0:00:04]} Rd8 {[%emt 0:
00:22]} 35. d6 {[%emt 0:05:27]} cxd6 {[%emt 0:00:48]} 36. Kd4 {[%emt 0:00:02]}
Rc8 {[%emt 0:01:09]} 37. Bxd6+ {[%emt 0:00:20]} Kg8 {[%emt 0:00:06]} 38. c5 {
[%emt 0:01:59]} bxc5+ {[%emt 0:00:17]} 39. Kd5 {[%emt 0:00:55]} Bb7+ {[%emt 0:
01:00]} 40. Kc4 {[%emt 0:00:13]} Ba6+ {[%emt 0:00:08]} 41. Kd5 {[%emt 0:00:04]}
Bb7+ {[%emt 0:00:42]} 42. Kc4 {[%emt 0:03:17]} Ba6+ {[%emt 0:00:36]} 1/2-1/2

[Event "Panevezys ELITE Open 2021"]
[Site "Panevezys, Lithuania"]
[Date "2021.08.02"]
[Round "5.4"]
[White "Sedykh, Stakhey"]
[Black "Greicius, Pijus"]
[Result "1/2-1/2"]
[WhiteElo "1418"]
[BlackElo "1902"]
[PlyCount "58"]
[EventDate "2021.??.??"]
[TimeControl "90/40+30:0"]
[WhiteClock "0:27:01"]
[BlackClock "0:25:20"]

1. e4 {[%emt 0:00:02]} e5 {[%emt 0:00:08]} 2. Nf3 {[%emt 0:00:10]} Nc6 {[%emt
0:00:08]} 3. Bc4 {[%emt 0:00:15]} Nf6 {[%emt 0:00:25]} 4. d3 {[%emt 0:00:23]}
Bc5 {[%emt 0:00:09]} 5. c3 {[%emt 0:00:31]} a6 {[%emt 0:00:13]} 6. Bb3 {[%emt
0:00:10]} d6 {[%emt 0:00:23]} 7. Nbd2 {[%emt 0:02:01]} O-O {[%emt 0:03:37]} 8.
O-O {[%emt 0:04:56]} Ba7 {[%emt 0:00:18]} 9. Re1 {[%emt 0:02:03]} Ng4 {[%emt 0:
00:18]} 10. Re2 {[%emt 0:02:19]} Kh8 {[%emt 0:11:31]} 11. h3 {[%emt 0:01:38]}
f5 {[%emt 0:08:28]} 12. exf5 {[%emt 0:10:59]} Nh6 {[%emt 0:00:49]} 13. Ne4 {
[%emt 0:03:02]} Nxf5 {[%emt 0:00:37]} 14. Neg5 {[%emt 0:04:23]} Qf6 {[%emt 0:
06:20]} 15. Be3 {[%emt 0:16:55]} Nxe3 {[%emt 0:06:29]} 16. fxe3 {[%emt 0:00:07]
} h6 {[%emt 0:00:13]} 17. Ne4 {[%emt 0:00:29]} Qf4 {[%emt 0:01:00]} 18. Nd4 {
[%emt 0:07:32]} Qh4 {[%emt 0:08:20]} 19. Nf3 {[%emt 0:01:47]} Qd8 {[%emt 0:01:
52]} 20. Kh2 {[%emt 0:03:52]} Bf5 {[%emt 0:07:11]} 21. Ng3 {[%emt 0:00:56]} Bh7
{[%emt 0:01:00]} 22. d4 {[%emt 0:00:55]} e4 {[%emt 0:07:00]} 23. Nd2 {[%emt 0:
00:31]} d5 {[%emt 0:00:06]} 24. c4 {[%emt 0:00:40]} Qd6 {[%emt 0:03:04]} 25.
cxd5 {[%emt 0:01:26]} Na5 {[%emt 0:00:35]} 26. Bc2 {[%emt 0:01:04]} Rae8 {
[%emt 0:04:19]} 27. b4 {[%emt 0:03:38]} c6 {[%emt 0:04:34]} 28. bxa5 {[%emt 0:
01:00]} Bb8 {[%emt 0:00:05]} 29. Qe1 {[%emt 0:04:10]} cxd5 {[%emt 0:00:30]}
1/2-1/2

[Event "Panevezys ELITE Open 2021"]
[Site "Panevezys, Lithuania"]
[Date "2021.08.02"]
[Round "5.5"]
[White "Bagvilas, Lukas"]
[Black "Salna, Aleksandras"]
[Result "1/2-1/2"]
[WhiteElo "2000"]
[BlackElo "2166"]
[PlyCount "21"]
[EventDate "2021.??.??"]
[TimeControl "90/40+30:0"]
[WhiteClock "1:34:34"]
[BlackClock "1:34:12"]

1. e4 {[%emt 0:00:00]} e6 {[%emt 0:00:07]} 2. d4 {[%emt 0:00:07]} d5 {[%emt 0:
00:07]} 3. exd5 {[%emt 0:00:10]} exd5 {[%emt 0:00:06]} 4. Bd3 {[%emt 0:00:06]}
Bd6 {[%emt 0:00:13]} 5. c3 {[%emt 0:00:13]} c6 {[%emt 0:00:07]} 6. Qb3 {[%emt
0:00:12]} Qb6 {[%emt 0:00:08]} 7. Nf3 {[%emt 0:00:08]} Nf6 {[%emt 0:00:08]} 8.
O-O {[%emt 0:00:06]} O-O {[%emt 0:00:06]} 9. Be3 {[%emt 0:00:06]} Be6 {[%emt 0:
00:07]} 10. h3 {[%emt 0:00:05]} h6 {[%emt 0:00:08]} 11. Nbd2 {[%emt 0:00:11]}
1/2-1/2

[Event "Panevezys ELITE Open 2021"]
[Site "Panevezys, Lithuania"]
[Date "2021.08.02"]
[Round "5.6"]
[White "Sedykh, Mikhail"]
[Black "Milovs, Daniels"]
[Result "1/2-1/2"]
[WhiteElo "2119"]
[BlackElo "1743"]
[PlyCount "94"]
[EventDate "2021.??.??"]
[TimeControl "90/40+30:0"]
[WhiteClock "0:13:14"]
[BlackClock "0:22:04"]

1. d4 {[%emt 0:00:03]} Nf6 {[%emt 0:00:02]} 2. c4 {[%emt 0:00:10]} g6 {[%emt 0:
00:02]} 3. Nc3 {[%emt 0:00:11]} Bg7 {[%emt 0:00:05]} 4. e4 {[%emt 0:00:05]} d6
{[%emt 0:00:02]} 5. Nf3 {[%emt 0:00:10]} O-O {[%emt 0:00:12]} 6. Be2 {[%emt 0:
00:14]} e5 {[%emt 0:00:05]} 7. O-O {[%emt 0:00:12]} Na6 {[%emt 0:00:02]} 8. Be3
{[%emt 0:00:58]} Ng4 {[%emt 0:00:35]} 9. Bg5 {[%emt 0:01:03]} Qe8 {[%emt 0:00:
02]} 10. h3 {[%emt 0:02:02]} h6 {[%emt 0:00:02]} 11. Bh4 {[%emt 0:03:45]} Nf6 {
[%emt 0:01:21]} 12. dxe5 {[%emt 0:07:49]} dxe5 {[%emt 0:00:02]} 13. Nd5 {[%emt
0:00:16]} Nxe4 {[%emt 0:15:21]} 14. Be7 {[%emt 0:02:40]} c6 {[%emt 0:04:23]}
15. Bxf8 {[%emt 0:01:00]} Qxf8 {[%emt 0:00:40]} 16. Ne3 {[%emt 0:01:38]} Be6 {
[%emt 0:01:03]} 17. Qc2 {[%emt 0:03:34]} f5 {[%emt 0:00:29]} 18. Rad1 {[%emt 0:
07:19]} Qc5 {[%emt 0:10:30]} 19. a3 {[%emt 0:02:47]} Ng3 {[%emt 0:12:57]} 20.
b4 {[%emt 0:04:33]} Nxe2+ {[%emt 0:01:52]} 21. Qxe2 {[%emt 0:00:03]} Qe7 {
[%emt 0:01:08]} 22. c5 {[%emt 0:14:49]} Nc7 {[%emt 0:02:31]} 23. Nc4 {[%emt 0:
05:51]} e4 {[%emt 0:01:16]} 24. Nd4 {[%emt 0:00:30]} Nd5 {[%emt 0:02:23]} 25.
Qc2 {[%emt 0:13:18]} Bf7 {[%emt 0:06:35]} 26. Rfe1 {[%emt 0:14:53]} Nf4 {[%emt
0:03:12]} 27. Re3 {[%emt 0:02:54]} Qg5 {[%emt 0:12:16]} 28. Rg3 {[%emt 0:00:10]
} Qh5 {[%emt 0:00:01]} 29. f3 {[%emt 0:04:14]} Qh4 {[%emt 0:05:50]} 30. Qf2 {
[%emt 0:03:53]} Nh5 {[%emt 0:04:03]} 31. Nxf5 {[%emt 0:00:39]} Qf6 {[%emt 0:07:
19]} 32. Nxg7 {[%emt 0:00:04]} Nxg3 {[%emt 0:00:37]} 33. Qxg3 {[%emt 0:00:08]}
Kxg7 {[%emt 0:01:39]} 34. Rd7 {[%emt 0:02:37]} Rd8 {[%emt 0:03:12]} 35. Rxd8 {
[%emt 0:02:06]} Qxd8 {[%emt 0:00:01]} 36. Nd6 {[%emt 0:00:35]} exf3 {[%emt 0:
01:06]} 37. Qxf3 {[%emt 0:00:11]} Qe7 {[%emt 0:01:12]} 38. Qc3+ {[%emt 0:00:31]
} Kg8 {[%emt 0:00:43]} 39. Qd4 {[%emt 0:00:50]} Bd5 {[%emt 0:01:08]} 40. Qf4 {
[%emt 0:00:56]} Kg7 {[%emt 0:00:52]} 41. Kf2 {[%emt 0:08:31]} Kh7 {[%emt 0:02:
52]} 42. Kg1 {[%emt 0:08:41]} Kg7 {[%emt 0:02:34]} 43. Kh2 {[%emt 0:00:45]} Kh7
{[%emt 0:01:39]} 44. Nc8 {[%emt 0:01:16]} Qe2 {[%emt 0:02:08]} 45. Qg3 {[%emt
0:00:44]} a6 {[%emt 0:01:55]} 46. Nb6 {[%emt 0:01:23]} Qe7 {[%emt 0:03:25]} 47.
Qb8 {[%emt 0:01:19]} Bxg2 {[%emt 0:15:54]} 1/2-1/2

[Event "Panevezys ELITE Open 2021"]
[Site "Panevezys, Lithuania"]
[Date "2021.08.02"]
[Round "5.8"]
[White "Michailov, Andrej"]
[Black "Juksta, Karolis"]
[Result "0-1"]
[WhiteElo "1645"]
[BlackElo "2438"]
[PlyCount "54"]
[EventDate "2021.??.??"]
[TimeControl "90/40+30:0"]
[WhiteClock "0:04:06"]
[BlackClock "0:35:05"]

1. c4 {[%emt 0:00:03]} e5 {[%emt 0:01:01]} 2. Nc3 {[%emt 0:00:03]} Bb4 {[%emt
0:00:07]} 3. Nd5 {[%emt 0:00:48]} Bc5 {[%emt 0:00:09]} 4. b4 {[%emt 0:05:34]}
Bf8 {[%emt 0:00:07]} 5. Qb3 {[%emt 0:02:54]} c6 {[%emt 0:00:18]} 6. Nc3 {[%emt
0:00:31]} Nf6 {[%emt 0:05:18]} 7. e4 {[%emt 0:09:46]} a5 {[%emt 0:07:35]} 8.
bxa5 {[%emt 0:06:37]} Qxa5 {[%emt 0:04:13]} 9. Be2 {[%emt 0:28:05]} Bc5 {[%emt
0:08:01]} 10. Nf3 {[%emt 0:00:49]} d6 {[%emt 0:02:16]} 11. O-O {[%emt 0:01:12]}
O-O {[%emt 0:00:12]} 12. d3 {[%emt 0:01:17]} Nbd7 {[%emt 0:09:59]} 13. Bb2 {
[%emt 0:11:38]} Bb6 {[%emt 0:03:34]} 14. Qc2 {[%emt 0:00:28]} Nc5 {[%emt 0:02:
03]} 15. Nd2 {[%emt 0:00:02]} Ne6 {[%emt 0:01:39]} 16. Nb3 {[%emt 0:00:15]} Qa7
{[%emt 0:00:15]} 17. a4 {[%emt 0:11:33]} Nd4 {[%emt 0:02:59]} 18. Nxd4 {[%emt
0:01:00]} Bxd4 {[%emt 0:00:10]} 19. Nd1 {[%emt 0:00:30]} Be6 {[%emt 0:04:35]}
20. Kh1 {[%emt 0:04:52]} Nd7 {[%emt 0:01:30]} 21. Bxd4 {[%emt 0:01:50]} Qxd4 {
[%emt 0:00:57]} 22. Ne3 {[%emt 0:00:00]} Nc5 {[%emt 0:02:24]} 23. Rfb1 {[%emt
0:04:29]} f5 {[%emt 0:04:22]} 24. exf5 {[%emt 0:05:11]} Bxf5 {[%emt 0:00:07]}
25. Nxf5 {[%emt 0:00:02]} Rxf5 {[%emt 0:00:07]} 26. f3 {[%emt 0:00:06]} Rff8 {
[%emt 0:04:11]} 27. a5 {[%emt 0:00:24]} Ra6 {[%emt 0:00:41]} 0-1

[Event "Panevezys ELITE Open 2021"]
[Site "Panevezys, Lithuania"]
[Date "2021.08.02"]
[Round "5.9"]
[White "Voroblievas, Arturas"]
[Black "Stremavicius, Pijus"]
[Result "0-1"]
[WhiteElo "1699"]
[BlackElo "2146"]
[PlyCount "58"]
[EventDate "2021.??.??"]
[TimeControl "90/40+30:0"]
[WhiteClock "0:10:10"]
[BlackClock "0:44:56"]

1. e4 {[%emt 0:00:01]} d6 {[%emt 0:11:02]} 2. d4 {[%emt 0:00:13]} Nf6 {[%emt 0:
00:05]} 3. Nc3 {[%emt 0:00:09]} g6 {[%emt 0:00:05]} 4. f4 {[%emt 0:00:35]} Bg7
{[%emt 0:00:08]} 5. Nf3 {[%emt 0:00:32]} c5 {[%emt 0:00:07]} 6. Bb5+ {[%emt 0:
01:21]} Bd7 {[%emt 0:00:21]} 7. e5 {[%emt 0:01:37]} Ng4 {[%emt 0:00:20]} 8. e6
{[%emt 0:03:38]} Bxb5 {[%emt 0:00:29]} 9. exf7+ {[%emt 0:00:45]} Kf8 {[%emt 0:
00:39]} 10. Nxb5 {[%emt 0:00:51]} Qa5+ {[%emt 0:01:13]} 11. Nc3 {[%emt 0:00:27]
} cxd4 {[%emt 0:00:50]} 12. Nxd4 {[%emt 0:01:38]} Kxf7 {[%emt 0:00:58]} 13.
Ndb5 {[%emt 0:13:38]} Bxc3+ {[%emt 0:05:58]} 14. Nxc3 {[%emt 0:00:28]} Nf6 {
[%emt 0:00:08]} 15. O-O {[%emt 0:00:52]} Nc6 {[%emt 0:00:53]} 16. f5 {[%emt 0:
05:16]} Ne5 {[%emt 0:05:29]} 17. Bg5 {[%emt 0:03:35]} gxf5 {[%emt 0:08:50]} 18.
Bxf6 {[%emt 0:15:11]} Kxf6 {[%emt 0:00:35]} 19. Qh5 {[%emt 0:07:12]} Kg7 {
[%emt 0:03:52]} 20. Qg5+ {[%emt 0:05:21]} Ng6 {[%emt 0:00:11]} 21. Rae1 {[%emt
0:07:55]} Rae8 {[%emt 0:09:47]} 22. Rxf5 {[%emt 0:02:55]} Qb6+ {[%emt 0:00:34]}
23. Kh1 {[%emt 0:00:09]} Qxb2 {[%emt 0:03:19]} 24. Rf3 {[%emt 0:11:00]} Rhf8 {
[%emt 0:02:21]} 25. Rh3 {[%emt 0:02:56]} Rf7 {[%emt 0:00:13]} 26. Qh6+ {[%emt
0:03:29]} Kg8 {[%emt 0:00:13]} 27. Rg3 {[%emt 0:00:52]} Qxc2 {[%emt 0:01:05]}
28. Ne4 {[%emt 0:01:34]} Qxe4 {[%emt 0:00:14]} 29. Rxg6+ {[%emt 0:00:38]} Qxg6
{[%emt 0:00:09]} 0-1

[Event "Panevezys ELITE Open 2021"]
[Site "Panevezys, Lithuania"]
[Date "2021.08.02"]
[Round "5.10"]
[White "Carlsson, Ludvig"]
[Black "Bazevicius, Albertas"]
[Result "1-0"]
[WhiteElo "2258"]
[BlackElo "1867"]
[PlyCount "57"]
[EventDate "2021.??.??"]
[TimeControl "90/40+30:0"]
[WhiteClock "0:56:02"]
[BlackClock "0:29:08"]

1. e4 {[%emt 0:02:49]} e5 {[%emt 0:00:10]} 2. Nf3 {[%emt 0:01:20]} Nc6 {[%emt
0:00:17]} 3. Bc4 {[%emt 0:00:18]} Bc5 {[%emt 0:00:38]} 4. b4 {[%emt 0:00:18]}
Bxb4 {[%emt 0:03:26]} 5. c3 {[%emt 0:00:10]} Be7 {[%emt 0:01:58]} 6. d4 {[%emt
0:00:37]} exd4 {[%emt 0:09:00]} 7. Qb3 {[%emt 0:08:33]} Kf8 {[%emt 0:04:07]} 8.
cxd4 {[%emt 0:04:00]} Na5 {[%emt 0:01:59]} 9. Qc3 {[%emt 0:00:07]} Nxc4 {[%emt
0:00:03]} 10. Qxc4 {[%emt 0:00:07]} d6 {[%emt 0:01:13]} 11. O-O {[%emt 0:02:31]
} Bg4 {[%emt 0:01:02]} 12. Qb3 {[%emt 0:01:26]} Bxf3 {[%emt 0:02:20]} 13. Qxf3
{[%emt 0:00:19]} c6 {[%emt 0:02:55]} 14. Nc3 {[%emt 0:01:26]} Bg5 {[%emt 0:00:
20]} 15. Rb1 {[%emt 0:02:34]} Bxc1 {[%emt 0:05:28]} 16. Rxb7 {[%emt 0:00:11]}
Ne7 {[%emt 0:03:51]} 17. Rxc1 {[%emt 0:00:20]} Qe8 {[%emt 0:07:19]} 18. Qf4 {
[%emt 0:02:53]} Nc8 {[%emt 0:05:55]} 19. Rcb1 {[%emt 0:07:07]} Qe6 {[%emt 0:03:
22]} 20. Rc7 {[%emt 0:01:01]} Ke8 {[%emt 0:02:07]} 21. Rbb7 {[%emt 0:01:22]}
Rf8 {[%emt 0:00:27]} 22. Rxc6 {[%emt 0:04:13]} f5 {[%emt 0:06:19]} 23. Nb5 {
[%emt 0:05:45]} Rf7 {[%emt 0:06:19]} 24. Nc7+ {[%emt 0:00:19]} Rxc7 {[%emt 0:
00:09]} 25. Rcxc7 {[%emt 0:00:05]} Qxa2 {[%emt 0:00:54]} 26. exf5 {[%emt 0:00:
47]} Qa1+ {[%emt 0:00:10]} 27. Rc1 {[%emt 0:00:11]} Qa3 {[%emt 0:01:00]} 28.
Rxc8+ {[%emt 0:00:22]} Rxc8 {[%emt 0:00:15]} 29. Qe4+ {[%emt 0:00:04]} 1-0